{"text_format":"1","workbook":"xlsx","n_sheets":1,"sheets":["ADA CONSTRUCTION JAN 2025 CAA"],"not_rendered":{"charts":0,"images":0,"macros":1,"external_links":0,"defined_names":0,"comments":1,"pivot_tables":0},"unopened":[],"bounds":{"document_bytes":16777216,"sheet_cells":100000,"rows_first":2000,"rows_last":500,"rows_between":2000,"halvings":0,"cell_chars":16384,"cell_head_chars":4096},"cells_cut":0,"cells_raw":0,"read":"whole","date_system":"1900"}

{"sheet":"ADA CONSTRUCTION JAN 2025 CAA","index":0,"n_rows":248,"n_cols":10,"rows_kept":248,"cut":false,"hidden":false,"merged":[]}
["DEPARTMENT OF TRANSPORTATION - CALTRANS"]
["DBE Commitment at Award (CAA) on Federally Funded Major Construction Contracts - October 1, 2024 - January 31, 2025"]
[]
["Total Award Amount Year-to-Date (YTD)",null,"Total DBE Commitment Amount YTD",null,null,"Total Prime Contracts Awarded YTD"]
[1012050227.3099999,null,{"$f":"SUM(C7:C18)","v":235161851.10000002},null,null,{"$f":"SUM(C233:C245,I233:I245,F233:F245)","v":61}]
["Groups",null,"Commitment Dollars YTD","Firms YTD","Contracts YTD","% of Contracts","% of DBE $","% of Total $"]
["Hispanic American Male",null,{"$f":"SUMIF(D30:D104,\"m\", C30:C104)","v":57720593.720000014},{"$f":"COUNTIF(D30:D104,\"M\")","v":53},{"$f":"SUMIF(D30:D104,\"M\",E30:E104)","v":132},{"$f":"E7/E20","v":0.28509719222462204},{"$f":"C7/C5","v":0.24545049909245253},{"$f":"C7/A5","v":5.703332913962153E-2}]
["Hispanic American Female",null,{"$f":"SUMIF(D30:D104,\"F\", C30:C104)","v":27801245.159999996},{"$f":"COUNTIF(D30:D104,\"F\")","v":20},{"$f":"SUMIF(D30:D104,\"F\",E30:E104)","v":63},{"$f":"E8/E20","v":0.13606911447084233},{"$f":"C8/C5","v":0.11822174825532318},{"$f":"C8/A5","v":2.7470222731825176E-2}]
["African American Male",null,{"$f":"SUMIF(D118:D131,\"m\", C118:C131)","v":6900420},{"$f":"COUNTIF(D118:D131,\"M\")","v":11},{"$f":"SUMIF(D118:D131,\"M\",E118:E131)","v":17},{"$f":"E9/E20","v":3.6717062634989202E-2},{"$f":"C9/C5","v":2.9343279820780419E-2},{"$f":"C9/A5","v":6.8182584359880198E-3}]
["African American Female",null,{"$f":"SUMIF(D118:D131,\"F\", C118:C131)","v":5027375.63},{"$f":"COUNTIF(D118:D131,\"F\")","v":2},{"$f":"SUMIF(D118:D131,\"F\",E118:E131)","v":5},{"$f":"E10/E20","v":1.079913606911447E-2},{"$f":"C10/C5","v":2.1378363907597252E-2},{"$f":"C10/A5","v":4.9675159338312862E-3}]
["Asian Pacific Male",null,{"$f":"SUMIF(D149:D165,\"m\", C149:C165)","v":5099764.76},{"$f":"COUNTIF(D149:D165,\"M\")","v":10},{"$f":"SUMIF(D149:D165,\"M\",E149:E165)","v":23},{"$f":"E11/E20","v":4.9676025917926567E-2},{"$f":"C11/C5","v":2.1686190749669598E-2},{"$f":"C11/A5","v":5.0390431446816885E-3}]
["Asian Pacific Female",null,{"$f":"SUMIF(D149:D165,\"F\", C149:C165)","v":9223967.4499999993},{"$f":"COUNTIF(D149:D165,\"F\")","v":5},{"$f":"SUMIF(D149:D165,\"F\",E149:E165)","v":24},{"$f":"E12/E20","v":5.183585313174946E-2},{"$f":"C12/C5","v":3.9223910710235087E-2},{"$f":"C12/A5","v":9.1141399913688432E-3}]
["Subcontinent Asian Male",null,{"$f":"SUMIF(D134:D146,\"m\", C134:C146)","v":13297772.079999998},{"$f":"COUNTIF(D134:D146,\"M\")","v":9},{"$f":"SUMIF(D134:D146,\"M\",E134:E146)","v":21},{"$f":"E13/E20","v":4.5356371490280781E-2},{"$f":"C13/C5","v":5.6547318443863008E-2},{"$f":"C13/A5","v":1.3139438855070552E-2}]
["Subcontinent Asian Female",null,{"$f":"SUMIF(D134:D146,\"F\", C134:C146)","v":0},{"$f":"COUNTIF(D134:D146,\"F\")","v":0},{"$f":"SUMIF(D134:D146,\"F\",E134:E146)","v":0},{"$f":"E14/E20","v":0},{"$f":"C14/C5","v":0},{"$f":"C14/A5","v":0}]
["Native American Male",null,{"$f":"SUMIF(D107:D115,\"m\", C107:C115)","v":12498529.9},{"$f":"COUNTIF(D107:D115,\"M\")","v":3},{"$f":"SUMIF(D107:D115,\"M\",E107:E115)","v":17},{"$f":"E15/E20","v":3.6717062634989202E-2},{"$f":"C15/C5","v":5.3148628663775642E-2},{"$f":"C15/A5","v":1.2349713050527867E-2}]
["Native American Female",null,{"$f":"SUMIF(D107:D115,\"F\", C107:C115)","v":7281205},{"$f":"COUNTIF(D107:D115,\"F\")","v":4},{"$f":"SUMIF(D107:D115,\"F\",E107:E115)","v":5},{"$f":"E16/E20","v":1.079913606911447E-2},{"$f":"C16/C5","v":3.096252630237949E-2},{"$f":"C16/A5","v":7.1945095248416979E-3}]
["Non Minority Women",null,{"$f":"SUMIF(D172:D228,\"F\", C172:C228)","v":90310977.400000006},{"$f":"COUNTIF(D172:D228,\"F\")","v":55},{"$f":"SUMIF(D172:D228,\"F\",E172:E228)","v":156},{"$f":"E17/E20","v":0.33693304535637147},{"$f":"C17/C5","v":0.38403753405392377},{"$f":"C17/A5","v":8.9235667324579285E-2}]
["Other Men",null,{"$f":"SUMIF(D168:D169,\"m\", C168:C169)","v":0},{"$f":"COUNTIF(D168:D169,\"M\")","v":0},{"$f":"SUMIF(D168:D169,\"M\",E168:E169)","v":0},{"$f":"E18/E20","v":0},{"$f":"C18/C5","v":0},{"$f":"C18/A5","v":0}]
[null,null,null,null,null,{"$f":"E19/E20","v":0},{"$f":"C19/C5","v":0},{"$f":"C19/A5","v":0}]
["Total  ",null,{"$f":"SUM(C7:C18)","v":235161851.10000002},{"$f":"SUM(D7:D19)","v":172},{"$f":"SUM(E7:E19)","v":463}]
["Total Primes Contracts",null,{"$f":"SUM(C233:C245,I233:I245,F233:F245)","v":61}]
[]
["Yellow = DBEs",null,"Green = Trucking",{"$f":"COUNTIF(B30:B228,43)","v":28},{"$f":"SUM(SUMIF(B29:B104,\"43\",C29:C104),SUMIF(B106:B169,\"43\",C106:C169),SUMIF(B171:B228,\"43\",C171:C228))","v":27815916.899999999},{"$f":"E23/C5","v":0.11828413822177128}]
["Red = Prime Contractor",null,"Blue = Supplier",{"$f":"COUNTIF(B30:B228,33)","v":25},{"$f":"SUM(SUMIF(B30:B104,\"33\",C30:C104),SUMIF(B107:B169,\"33\",C107:C169),SUMIF(B172:B228,\"33\",C172:C228))","v":44128973.340000004},{"$f":"E24/C5","v":0.18765362295619384}]
["Red Italic = DBE firm as Prime",null,"White = Other",{"$f":"COUNTIF(B30:B228,-4142)","v":114},{"$f":"C5-(E23+E24)","v":163216960.86000001},{"$f":"E25/C5","v":0.69406223882203488}]
["BOLD = women"]
["* = Used both as Trucking & Supplier"]
[]
["Hispanic American","Column1","Dollars","M/F","Contract","Contract #","Prime","Prime Name","Districts"]
["1 PASS SWEEPING, INC.",-4142,127500,"M",1,{"$f":"FETCHCOMMENT(E30)","v":"12-0K91U4"},1,{"$f":"FETCHCOMMENT(G30)","v":"GRANITE CONSTRUCTION COMPANY"},12]
["A&M CONSULTING ENGINEERS",-4142,97600,"M",6,{"$f":"FETCHCOMMENT(E31)","v":"08-1J6104\n04-0K6404\n04-2K7404\n03-3H8304\n04-2Q8004\n05-1H6504"},6,{"$f":"FETCHCOMMENT(G31)","v":"FBD VANGUARD CONSTRUCTION, INC.\nO.C. JONES & SONS INC\nBAY CITIES PAVING & GRADING\nPACIFIC INFRASTRUCTURE CONSTRUCTION, LLC\nGORDON N. BALL, INC.\nGRANITE CONSTRUCTION COMPANY"},"3,4,5,8"]
["ABSL CONSTRUCTION",-4142,1745438.8599999999,"M",13,{"$f":"FETCHCOMMENT(E32)","v":"03-4H8704\n05-1J7804\n02-3H6904\n04-2Q6104\n07-333604\n10-0Q2104\n01-0F7104\n04-0P9204\n04-2K7404\n04-3J2604\n05-1H6504\n06-487404\n10-1L2804"},8,{"$f":"FETCHCOMMENT(G32)","v":"O.C. JONES & SONS INC\nCALPORTLAND CONSTRUCTION\nDIG IT CONSTRUCTION, INC.\nGRANITE ROCK COMPANY\nSULLY-MILLER CONTRACTING COMPANY\nBAY CITIES PAVING & GRADING, INC.\nGHILOTTI CONSTRUCTION COMPANY INC\nMYERS & SONS CONSTRUCGTION LLC"},"1,2,3,4,5,6,7,10"]
["ADVANTAGE DEMOLITION & GRADING, INC.",-4142,450000,"M",1,{"$f":"FETCHCOMMENT(E33)","v":"06-487404"},1,{"$f":"FETCHCOMMENT(G33)","v":"GRANITE CONSTRUCTION COMPANY"},6]
["ALCORN FENCE COMPANY",-4142,8901,"M",1,{"$f":"FETCHCOMMENT(E34)","v":"08-1J6104"},1,{"$f":"FETCHCOMMENT(G34)","v":"FBD VANGUARD CONSTRUCTION, INC."},8]
["ATHENA TRUCKING",43,200000,"M",1,{"$f":"FETCHCOMMENT(E35)","v":"12-0K91U4"},1,{"$f":"FETCHCOMMENT(G35)","v":"GRANITE CONSTRUCTION COMPANY"},12]
["AUSTIN ENTERPRISE",-4142,1137573.8500000001,"F",10,{"$f":"FETCHCOMMENT(E36)","v":"11-430384\n05-1J7804\n08-1J6104\n04-2K7404\n04-2Q8004\n05-1K4504\n05-1K6404\n06-487404\n12-0K91U4\n08-1K6904"},6,{"$f":"FETCHCOMMENT(G36)","v":"HAZARD CONSTRUCTION ENGINEERING INC\nCALPORTLAND CONSTRUCTION\nFBD VANGUARD CONSTRUCTION, INC.\nBAY CITIES PAVING & GRADING, INC.\nGORDON N. BALL, INC.\nGRANITE CONSTRUCTION COMPANY"},"4,5,6,8,11,12"]
["BAY LINE CUTTING & CORING",-4142,78120,"M",1,{"$f":"FETCHCOMMENT(E37)","v":"05-1H6504"},1,{"$f":"FETCHCOMMENT(G37)","v":"GRANITE CONSTRUCTION COMPANY"},5]
["CENTRAL COAST TRAFFIC SAFETY",33,17975.099999999999,"M",1,{"$f":"FETCHCOMMENT(E38)","v":"05-1Q03U4"},1,{"$f":"FETCHCOMMENT(G38)","v":"PAPICH CONSTRUCTION COMPANY, INC."},5]
["CHAVEZ TRUCKING",43,1657180.2,"F",4,{"$f":"FETCHCOMMENT(E39)","v":"04-2Q6104\n04-2K7404\n04-3J2604\n04-2Q8004"},4,{"$f":"FETCHCOMMENT(G39)","v":"GRANITE ROCK COMPANY\nBAY CITIES PAVING & GRADING, INC.\nO.C. JONES & SONS, INC.\nGORDON N. BALL, INC."},4]
["COVARRUBIAS TRAFFIC CONTROL",-4142,832000,"F",2,{"$f":"FETCHCOMMENT(E40)","v":"07-4X9704\n08-1K4004"},1,{"$f":"FETCHCOMMENT(G40)","v":"BEADOR CONSTRUCTION COMPANY, INC."},"7,8"]
["CUJO CONSTRUCTION INC",33,211352,"F",2,{"$f":"FETCHCOMMENT(E41)","v":"07-358404\n12-0K91U4"},2,{"$f":"FETCHCOMMENT(G41)","v":"YAKAR\nGRANITE CONSTRUCTION COMPANY"},"7,12"]
["D.B. ELECTRIC INC",-4142,1808806,"M",1,{"$f":"FETCHCOMMENT(E42)","v":"08-1J3004\n"},1,{"$f":"FETCHCOMMENT(G42)","v":"SULLY-MILLER CONTRACTING COMPANY"},8]
["DC TRAFFIC CONTROL",-4142,38300,"M",1,{"$f":"FETCHCOMMENT(E43)","v":"06-487404"},1,{"$f":"FETCHCOMMENT(G43)","v":"GRANITE CONSTRUCTION COMPANY"},6]
["DELTA BAY CONSULTANTS LLC",-4142,9100,"M",3,{"$f":"FETCHCOMMENT(E44)","v":"03-4H8704\n01-0F7104\n02-0K6404\n"},3,{"$f":"FETCHCOMMENT(G44)","v":"O.C. JONES & SONS INC\nGHILOTTI CONSTRUCTION COMPANY\nMCCUEN CONSTRUCTION"},"1,2,3"]
["DESIGN BUILD ENGINEERING",-4142,2050707.6,"M",4,{"$f":"FETCHCOMMENT(E45)","v":"07-348404\n07-356504\n12-0K91U4\n12-0R57U4"},3,{"$f":"FETCHCOMMENT(G45)","v":"ACCU CONSTRUCTION, INC.\nGRANITE CONSTRUCTION COMPANY\nSECURITY PAVING COMPANY, INC."},"7,12"]
["DRAGON MATERIAL TRANSPORT",-4142,630464.4,"F",2,{"$f":"FETCHCOMMENT(E46)","v":"05-1H6504\n06-487404"},1,{"$f":"FETCHCOMMENT(G46)","v":"GRANITE CONSTRUCTION COMPANY"},"5,6"]
["DRS REBAR INC",-4142,290463.2,"M",3,{"$f":"FETCHCOMMENT(E47)","v":"11-430384\n08-1J7204\n12-0R3154"},3,{"$f":"FETCHCOMMENT(G47)","v":"HAZARD CONSTRUCTION ENGR, LLC\nSULLY-MILLER CONTRACTING COMPANY\nPOWELL CONSTRUCTORS, INC."},"8,11,12"]
["EIGHTEEN TRUCKING",43,465000,"F",1,{"$f":"FETCHCOMMENT(E48)","v":"04-2Q8004"},1,{"$f":"FETCHCOMMENT(G48)","v":"GORDON N. BALL, INC."},4]
["ENDEMIC ENVIRONMENTAL SERVICES",-4142,835145,"M",8,{"$f":"FETCHCOMMENT(E49)","v":"03-0J01U4\n05-1J7804\n12-0R3134\n01-0F7104\n03-3H8304\n08-1J2704\n12-0R57U4\n08-1K6904"},8,{"$f":"FETCHCOMMENT(G49)","v":"MERCER-FRASER COMPANY\nCALPORTLAND CONSTRUCTION\nPETERSON-CHASE GENERAL ENGINEERING CONSTRUCTION, INC.\nGHILOTTI CONSTRUCTION COMPANY\nPACIFIC INFRASTRUCTURE CONSTRUCTION, LLC\nSULLY-MILLER CONTRACTING COMPANY\nSECURITY PAVING COMPANY, INC.\nGRANITE CONSTRUCTION COMPANY"},"1,3,5,8,12"]
["FRONTLINE TRAFFIC CONTROL",-4142,88880,"M",1,{"$f":"FETCHCOMMENT(E50)","v":"07-358404"},1,{"$f":"FETCHCOMMENT(G50)","v":"YAKAR"},7]
["G&F CONCRETE CUTTING",-4142,448030,"F",1,{"$f":"FETCHCOMMENT(E51)","v":"12-0R57U4"},1,{"$f":"FETCHCOMMENT(G51)","v":"SECURITY PAVING COMPANY, INC."},12]
["G&G ELECTRIC",-4142,5379795,"M",1,{"$f":"FETCHCOMMENT(E52)","v":"12-0R3154"},1,{"$f":"FETCHCOMMENT(G52)","v":"POWELL CONSTRUCTORS, INC."},12]
["GEO-STRUCTURAL ENGINEERING",-4142,752029,"M",1,{"$f":"FETCHCOMMENT(E53)","v":"07-4X9704"},1,{"$f":"FETCHCOMMENT(G53)","v":"BEADOR CONSTRUCTION COMPANY, INC."},7]
["G.O. RODRIGUEZ TRUCKING",43,15120,"M",1,{"$f":"FETCHCOMMENT(E54)","v":"07-4X9704"},1,{"$f":"FETCHCOMMENT(G54)","v":"BEADOR CONSTRUCTION COMPANY, INC."},7]
["GOLDEN BAY FENCE PLUS IRON",33,849890,"M",2,{"$f":"FETCHCOMMENT(E55)","v":"04-3J2604\n05-1H6504"},2,{"$f":"FETCHCOMMENT(G55)","v":"O.C. JONES & SONS, INC.\nGRANITE CONSTRUCTION COMPANY"},"4,5"]
["GREENCOAST LANDSCAPE, INC.",-4142,368159,"F",1,{"$f":"FETCHCOMMENT(E56)","v":"05-1K4504"},1,{"$f":"FETCHCOMMENT(G56)","v":"CALPORTLAND CONSTRUCTION"},5]
["HIGH LIGHT ELECTRIC, INC.",-4142,11497973,"M",4,{"$f":"FETCHCOMMENT(E57)","v":"12-0R3134\n11-056404\n08-1K4004\n12-0K91U4"},4,{"$f":"FETCHCOMMENT(G57)","v":"PETERSON-CHASE GENERAL ENGINEERING CONSTRUCTION, INC.\nHAZARD CONSTRUCTION COMPANY\nBEADOR CONSTRUCTION COMPANY, INC.\nGRANITE CONSTRUCTION COMPANY"},"8,11,12"]
["IN-LINE FENCE & RAILING",-4142,474725,"M",1,{"$f":"FETCHCOMMENT(E58)","v":"12-0K91U4"},1,{"$f":"FETCHCOMMENT(G58)","v":"GRANITE CONSTRUCTION COMPANY"},12]
["INLAND GARDENS AND TROPICS",-4142,118287.73,"F",1,{"$f":"FETCHCOMMENT(E59)","v":"08-1K4004"},1,{"$f":"FETCHCOMMENT(G59)","v":"BEADOR CONSTRUCTION COMPANY, INC."},8]
["JEFFERSON STATE HIGHWAYS INC",-4142,3440922.1,"M",12,{"$f":"FETCHCOMMENT(E60)","v":"03-4H8704\n03-0J01U4\n02-3H6904\n01-0F7104\n01-0J8904\n02-0K6404\n02-4H03U4\n02-1J75U4\n02-4H0104\n02-4H0704\n03-3H8304\n04-2Q8004"},8,{"$f":"FETCHCOMMENT(G60)","v":"O.C. JONES & SONS INC\nMERCER-FRASER COMPANY\nJEFFERSON STATE HIGHWAYS, INC.\nGHILOTTI CONSTRUCTION COMPANY INC\nMCCUEN CONSTRUCTION INC\nHAT CREEK CONSTRUCTION MATERIALS\nPACIFIC INFRASTRUCTURE CONSTRUCTION, LLC\nGORDON N. BALL, INC."},"1,2,3,4"]
["JFL ELECTRIC",null,66500,"M",1,{"$f":"FETCHCOMMENT(E61)","v":"08-1K6904"},1,{"$f":"FETCHCOMMENT(G61)","v":"GRANITE CONSTRUCTION COMPANY"},8]
["JUNIOR SWEEPING COMPANY LLC",43,52920,"M",2,{"$f":"FETCHCOMMENT(E62)","v":"01-0F7104\n05-1K6404"},2,{"$f":"FETCHCOMMENT(G62)","v":"GHILOTTI CONSTRUCTION COMPANY, INC.\nGRANITE CONSTRUCTION COMPANY"},"1,5"]
["K&G CONCRETE PUMPING",-4142,41895.599999999999,"M",1,{"$f":"FETCHCOMMENT(E63)","v":"04-2Q8004"},1,{"$f":"FETCHCOMMENT(G63)","v":"GORDON N. BALL, INC."},4]
["LA STEEL SERVICES, INC.",null,409638.2,"M",1,{"$f":"FETCHCOMMENT(E64)","v":"08-1K6904"},1,{"$f":"FETCHCOMMENT(G64)","v":"GRANITE CONSTRUCTION COMPANY"},8]
["LOGISTICAL ENTERPRISES",33,700880.11,"F",5,{"$f":"FETCHCOMMENT(E65)","v":"03-4H8704\n03-0J01U4\n04-0K1004\n12-0S1404\n04-3J2604"},4,{"$f":"FETCHCOMMENT(G65)","v":"O.C. JONES & SONS INC\n MERCER-FRASER COMPANY\nMIKE BROWN ELECTRIC CO.\nCHUMO CONSTRUCTION INC"},"3,4,12"]
["LONE STAR LANDSCAPE",-4142,853676,"M",4,{"$f":"FETCHCOMMENT(E66)","v":"04-0P9204\n04-0P7604\n05-1H6504\n05-1K6404"},3,{"$f":"FETCHCOMMENT(G66)","v":"MYERS & SONS CONSTRUCTION, LLC.\nST. FRANCIS ELECTRIC, LLC.\nGRANITE CONSTRUCTION COMPANY"},"4,5"]
["LOS MORALES TRUCKING, INC.",43,336000,"M",1,{"$f":"FETCHCOMMENT(E67)","v":"08-1K4004"},1,{"$f":"FETCHCOMMENT(G67)","v":"BEADOR CONSTRUCTION COMPANY, INC."},8]
["M&S ENVIRONMENTAL",33,2076579.2,"M",3,{"$f":"FETCHCOMMENT(E68)","v":"02-3H6904\n01-0J8904\n02-0K6404"},3,{"$f":"FETCHCOMMENT(G68)","v":"DIG IT CONSTRUCTION, INC.\nMERCER FRASER COMPANY\nMCCUEN CONSTRUCTION"},"1,2"]
["MADERS CONCRETE COMPANY",-4142,303950,"M",1,{"$f":"FETCHCOMMENT(E69)","v":"06-487404"},1,{"$f":"FETCHCOMMENT(G69)","v":"GRANITE CONSTRUCTION COMPANY"},6]
["MANERI TRAFFIC CONTROL",-4142,17497473.869999997,"F",13,{"$f":"FETCHCOMMENT(E70)","v":"11-430384\n12-0S1404\n07-333604\n08-1J6104\n07-358404\n08-1J3004\n08-1J2704\n08-1J7204\n08-1K4004\n12-0R3154\n12-0R57U4\n12-0S7004\n08-1K6904"},10,{"$f":"FETCHCOMMENT(G70)","v":"HAZARD CONSTRUCTION ENGR, LLC\nCHUMO CONSTRUCTION INC\nSULLY-MILLER CONTRACTING COMPANY\nFBD VANGUARD CONSTRUCTION, INC.\nYAKAR\nBEADOR CONSTRUCTION COMPANY, INC.\nPOWELL CONSTRUCTORS, INC.\nSECURITY PAVING COMPANY, INC.\nAUTOBAHN CONSTRUCTION, INC.\nGRANITE CONSTRUCTION COMPANY"},"7,8,11,12"]
["MAVERICK SWEEPING",-4142,142560,"F",1,{"$f":"FETCHCOMMENT(E71)","v":"08-1K4004"},1,{"$f":"FETCHCOMMENT(G71)","v":"BEADOR CONSTRUCTION COMPANY, INC."},8]
["MONZON & SON ENTERPRISES INC",43,7709707,"M",8,{"$f":"FETCHCOMMENT(E72)","v":"11-430384\n12-0S1404\n07-333604\n08-1J6104\n12-0R3134\n08-1J2704\n08-1J7204\n12-0R57U4"},6,{"$f":"FETCHCOMMENT(G72)","v":"HAZARD CONSTRUCTION ENGR, LLC\nCHUMO CONSTRUCTION INC\nSULLY-MILLER CONTRACTING COMPANY\nFBD VANGUARD CONSTRUCTION, INC.\nPETERSON-CHASE GENERAL ENGINEERING CONSTRUCTION, INC.\nSECURITY PAVING COMPANY, INC."},"7,8,11,12"]
["MORAN CONSULTING",-4142,94640,"M",1,{"$f":"FETCHCOMMENT(E73)","v":"07-333604"},1,{"$f":"FETCHCOMMENT(G73)","v":"SULLY-MILLER CONTRACTING COMPANY"},7]
["NOLD'S EQUIPMENT",33,362808,"F",1,{"$f":"FETCHCOMMENT(E74)","v":"07-333604"},2,{"$f":"FETCHCOMMENT(G74)","v":"SULLY-MILLER CONTRACTING COMPANY\nYAKAR"},7]
["POLO ENGINEERING, INC.",-4142,673013,"F",1,{"$f":"FETCHCOMMENT(E75)","v":"07-4P8504"},1,{"$f":"FETCHCOMMENT(G75)","v":"POLO ENGINEERING, INC."},7]
["PRE-CON PRODUCTS, LTD.",-4142,31397.360000000001,"M",1,{"$f":"FETCHCOMMENT(E76)","v":"08-1K4004"},1,{"$f":"FETCHCOMMENT(G76)","v":"BEADOR CONSTRUCTION COMPANY, INC."},8]
["PREMIER VALLEY TRANSPORT INC",43,237150,"M",1,{"$f":"FETCHCOMMENT(E77)","v":"05-1Q03U4"},1,{"$f":"FETCHCOMMENT(G77)","v":"PAPICH CONSTRUCTION COMPANY, INC."},5]
["PTM GENERAL ENGINEERING",-4142,970968,"F",2,{"$f":"FETCHCOMMENT(E78)","v":"07-4P8504\n05-1K5104"},2,{"$f":"FETCHCOMMENT(G78)","v":"PTM GENERAL ENGINEERING SERVICES, INC.\nCENTRAL COAST FINANCIAL GROUP, INC. DBA CCFG CONSTRUCTION"},"5,7"]
["QA CONSTRUCTORS",-4142,1277790,"M",2,{"$f":"FETCHCOMMENT(E79)","v":"04-0P9204\n04-0P7604"},2,{"$f":"FETCHCOMMENT(G79)","v":"MYERS & SONS CONSTRUCTION, LLC.\nST. FRANCIS ELECTRIC, LLC."},4]
["QUALITY TRAFFIC CONTROL",-4142,219725,"M",2,{"$f":"FETCHCOMMENT(E80)","v":"11-056404\n12-0K91U4"},2,{"$f":"FETCHCOMMENT(G80)","v":"HAZARD CONSTRUCTION ENGR, LLC\nGRANITE CONSTRUCTION COMPANY"},"11,12"]
["QUIMU CONTRACTING, INC.",-4142,386080,"M",1,{"$f":"FETCHCOMMENT(E81)","v":"03-3J9104"},1,{"$f":"FETCHCOMMENT(G81)","v":"QUIMU CONTRACTING, INC."},3]
["REYNAGA TRANSPORTATION",43,1158480,"M",2,{"$f":"FETCHCOMMENT(E82)","v":"07-333604\n08-1J6104"},2,{"$f":"FETCHCOMMENT(G82)","v":"SULLY-MILLER CONTRACTING COMPANY\nFBD VANGUARD CONSTRUCTION, INC."},"7,8"]
["R.M.C. TRUCKING",43,114500,"M",1,{"$f":"FETCHCOMMENT(E83)","v":"08-1J7204"},1,{"$f":"FETCHCOMMENT(G83)","v":"SULLY-MILLER CONTRACTING COMPANY"},8]
["ROBINSON SWEEPING INC",43,162200,"F",2,{"$f":"FETCHCOMMENT(E84)","v":"03-0J01U4\n01-0J8904"},1,{"$f":"FETCHCOMMENT(G84)","v":"MERCER-FRASER COMPANY"},"1,3"]
["RUPERT CONSTRUCTION SUPPLY",33,1202406.7,"M",10,{"$f":"FETCHCOMMENT(E85)","v":"11-430384\n05-1J7804\n08-1J6104\n04-3J2604\n01-0H6404\n02-1J75U4\n04-2Q8004\n06-487404\n08-1K4004\n12-0K91U4"},9,{"$f":"FETCHCOMMENT(G85)","v":"HAZARD CONSTRUCTION ENGR, LLC\nCALPORTLAND CONSTRUCTION\nFBD VANGUARD CONSTRUCTION, INC.\nO.C. JONES AND SONS\nWYLATTI RESOURCE MANAGEMENT, INC.\nHAT CREEK CONSTRUCTION & MATERIALS, INC.\nGORDON N. BALL, INC.\nGRANITE CONSTRUCTION COMPANY\nBEADOR CONSTRUCTION COMPANY, INC."},"1,2,4,5,6,8,11,12"]
["S&S TRUCKING",43,66903,"M",1,{"$f":"FETCHCOMMENT(E86)","v":"04-3J2604"},1,{"$f":"FETCHCOMMENT(G86)","v":"O.C. JONES & SONS, INC."},4]
["SAFEWAY SIGN COMPANY",-4142,164636.03999999998,"M",3,{"$f":"FETCHCOMMENT(E87)","v":"11-430384\n08-1K4004\n12-0R3154"},3,{"$f":"FETCHCOMMENT(G87)","v":"HAZARD CONSTRUCTION ENGR, LLC\nBEADOR CONSTRUCTION COMPANY, INC.\nPOWELL CONSTRUCTORS, INC."},11]
["SHIELD RENTALS & SALES LLC",-4142,174900,"M",1,{"$f":"FETCHCOMMENT(E88)","v":"04-2Q8004"},1,{"$f":"FETCHCOMMENT(G88)","v":"GORDON N. BALL, INC."},4]
["SOCAL WELDING",-4142,337930.25,"M",1,{"$f":"FETCHCOMMENT(E89)","v":"04-2Q8004"},1,{"$f":"FETCHCOMMENT(G89)","v":"GORDON N. BALL, INC."},4]
["SWPPQUEEN",-4142,14425,"F",1,{"$f":"FETCHCOMMENT(E90)","v":"04-0P7604"},1,{"$f":"FETCHCOMMENT(G90)","v":"ST. FRANCIS ELECTRIC, LLC."},4]
["TERRA WEST ",-4142,5600,"M",2,{"$f":"FETCHCOMMENT(E91)","v":"11-430384\n11-056404"},1,{"$f":"FETCHCOMMENT(G91)","v":"HAZARD CONSTRUCTION ENGR, LLC"},11]
["TOTAL SITE SUPPLY COMPANY",33,35526.339999999997,"M",1,{"$f":"FETCHCOMMENT(E92)","v":"08-1K4004"},1,{"$f":"FETCHCOMMENT(G92)","v":"BEADOR CONSTRUCTION COMPANY, INC."},8]
["TR DIGITAL, INC.",-4142,100000,"M",1,{"$f":"FETCHCOMMENT(E93)","v":"04-2Q8004"},1,{"$f":"FETCHCOMMENT(G93)","v":"GORDON N. BALL, INC."},4]
["TRANSPACIFIC STEEL LLC",-4142,3096020.4400000004,"M",4,{"$f":"FETCHCOMMENT(E94)","v":"05-1J7804\n04-2Q8004\n05-1K4504\n06-487404"},3,{"$f":"FETCHCOMMENT(G94)","v":"CALPORTLAND CONSTRUCTION\nGORDON N. BALL, INC.\nGRANITE CONSTRUCTION COMPANY"},5]
["TREESMITH ENTERPRISES",null,858000,"F",1,{"$f":"FETCHCOMMENT(E95)","v":"08-1K6904"},1,{"$f":"FETCHCOMMENT(G95)","v":"GRANITE CONSTRUCTION COMPANY"},8]
["TULLY INC",-4142,310870,"F",11,{"$f":"FETCHCOMMENT(E96)","v":"03-4H8704\n04-1Q2004\n10-0Q2104\n01-0F7104\n04-0K6404\n04-3J2604\n01-0H6404\n03-3H8304\n04-2Q8004\n06-487404\n10-1L2804"},8,{"$f":"FETCHCOMMENT(G96)","v":"O.C. JONES & SONS INC\nCOLUMBIA ELECTRIC, INC.\nBAY CITIES PAVING & GRADING, INC.\nGHILOTTI CONSTRUCTION COMPANY, INC.\nWYLATTI RESOURCE MANAGEMENT, INC.\nPACIFIC INFRASTRUCTURE CONSTRUCTION, LLC\nGORDON N. BALL, INC.\nGRANITE CONSTRUCTION COMPANY"},"1,3,4,6,10"]
["V3 CONSTRCTION, INC.",null,3996938.2,"M",1,{"$f":"FETCHCOMMENT(E97)","v":"08-1K6904"},1,{"$f":"FETCHCOMMENT(G97)","v":"GRANITE CONSTRUCTION COMPANY"},8]
["WCW INC.",-4142,973683.5,"M",1,{"$f":"FETCHCOMMENT(E98)","v":"04-2Q8004"},1,{"$f":"FETCHCOMMENT(G98)","v":"GORDON N. BALL, INC."},4]
["WEST PACIFIC CONCRETE",-4142,102378.03,"M",1,{"$f":"FETCHCOMMENT(E99)","v":"08-1J2704"},1,{"$f":"FETCHCOMMENT(G99)","v":"SULLY-MILLER CONTRACTING COMPANY"},8]
["WESTERN TRAFFIC SUPPLY, INC.",-4142,1720152,"M",3,{"$f":"FETCHCOMMENT(E100)","v":"04-2Q6104\n04-2K7404\n04-0P7604"},3,{"$f":"FETCHCOMMENT(G100)","v":"GRANITE ROCK COMPANY\nBAY CITIES PAVING & GRADING INC\nST. FRANCIS ELECTRIC, LLC."},4]
["YMD MATERIAL BROKER",-4142,240000,"F",1,{"$f":"FETCHCOMMENT(E101)","v":"08-1J7204"},1,{"$f":"FETCHCOMMENT(G101)","v":"SULLY-MILLER CONTRACTING COMPANY"},8]
["ZABEL ENTERPRISES",43,115500,"M",1,{"$f":"FETCHCOMMENT(E102)","v":"01-0J8904"},1,{"$f":"FETCHCOMMENT(G102)","v":"MERCER-FRASER COMPANY"},4]
[]
[]
[]
["Native American","Column1","Dollars","M/F","Contract","Contract #","Prime","Prime Name","Districts"]
["CREST EQUIPMENT",-4142,434000,"F",1,{"$f":"FETCHCOMMENT(E107)","v":"11-056404"},1,{"$f":"FETCHCOMMENT(G107)","v":"O.C. JONES & SONS, INC."},11]
["G R SUNDBERG, INC.",-4142,7149176.25,"M",4,{"$f":"FETCHCOMMENT(E108)","v":"01-0K4104\n01-0J8904\n01-0K9404\n06-487404"},3,{"$f":"FETCHCOMMENT(G108)","v":"G R SUNDBERG, INC.\nMERCER-FRASER COMPANY\nWYLATTI RESOURCE MANAGEMENT, INC."},1]
["KRC SAFETY CO INC",33,2414789,"M",7,{"$f":"FETCHCOMMENT(E109)","v":"05-1J7804\n06-0X2504\n05-1Q03U4\n05-1K4504\n05-1K5104\n05-1K6404\n06-487404"},4,{"$f":"FETCHCOMMENT(G109)","v":"CALPORTLAND CONSTRUCTION\nPAPICH CONSTRUCTION COMPANY, INC.\nGRANITE CONSTRUCTION COMPANY\nCENTRAL COAST FINANCIAL GROUP, INC. DBA CCFG CONSTRUCTION"},"5,6"]
["SPIRIT ROAD OILS",-4142,379280,"F",2,{"$f":"FETCHCOMMENT(E110)","v":"04-2Q6104\n04-0K6404"},2,{"$f":"FETCHCOMMENT(G110)","v":"GRANITE ROCK COMPANY\nHAZARD CONSTRUCTION ENGR, LLC"},4]
["SPURS TRUCKING AND EQUIPMENT, INC.",43,52200,"F",1,{"$f":"FETCHCOMMENT(E111)","v":"02-4H0604"},1,{"$f":"FETCHCOMMENT(G111)","v":"HAT CREEK CONSTRUCTION & MATERIALS, INC."},2]
["S.T. RHOADES CONSTRUCTION",-4142,2934564.65,"M",6,{"$f":"FETCHCOMMENT(E112)","v":"02-4H0604\n02-4H03U4\n03-2J5904\n02-4H0104\n02-4H0704\n03-1H1404"},3,{"$f":"FETCHCOMMENT(G112)","v":"HAT CREEK CONSTRUCTION & MATERIALS, INC.\nSTUDEBAKER ELECTRIC, INC.\nMARTIN BROTHERS CONSTRUCTION"},"2,3"]
["WEST COAST DRILLING",-4142,6415725,"F",1,{"$f":"FETCHCOMMENT(E113)","v":"06-487404"},1,{"$f":"FETCHCOMMENT(G113)","v":"GRANITE CONSTRUCTION COMPANY"},6]
[null,null,null,null,null,{"$f":"FETCHCOMMENT(E114)","v":""},null,{"$f":"FETCHCOMMENT(G114)","v":""}]
[null,null,null,null,null,{"$f":"FETCHCOMMENT(E115)","v":""},null,{"$f":"FETCHCOMMENT(G115)","v":""}]
[]
["African American","Column1","Dollars","M/F","Contract","Contract #","Prime","Prime Name","Districts"]
["ALLUVION BIOLOGICAL CONSULTING",-4142,160600,"M",2,{"$f":"FETCHCOMMENT(E118)","v":"10-0Q2104\n01-0J8904\n"},2,{"$f":"FETCHCOMMENT(G118)","v":"BAY CITIES PAVING & GRADING, INC.\nMERCER-FRASER COMPANY"},"1,10"]
["APPIAN UDBE SWPPPS",-4142,750,"F",1,{"$f":"FETCHCOMMENT(E119)","v":"05-1K6404"},1,{"$f":"FETCHCOMMENT(G119)","v":"GRANITE CONSTRUCTION COMPANY"},5]
["BLACK DIAMOND ASPHALT INC",33,5026625.63,"F",4,{"$f":"FETCHCOMMENT(E120)","v":"03-0J01U4\n03-4H8704\n01-0J8904\n10-1L2804"},2,{"$f":"FETCHCOMMENT(G120)","v":"MERCER-FRASER COMPANY\nO.C. JONES & SONS, INC."},"1,3,10"]
["CGO CONSTRUCTION COMPANY",-4142,150000,"M",1,{"$f":"FETCHCOMMENT(E121)","v":"08-1K4004"},1,{"$f":"FETCHCOMMENT(G121)","v":"BEADOR CONSTRUCTION COMPANY, INC."},8]
["DBE DIRECT, LLC",-4142,541500,"M",2,{"$f":"FETCHCOMMENT(E122)","v":"06-487404\n08-1K6904"},1,{"$f":"FETCHCOMMENT(G122)","v":"GRANITE CONSTRUCTION COMPANY"},"6,8"]
["DEPENDABLE PETROLEUM",33,5070,"M",1,{"$f":"FETCHCOMMENT(E123)","v":"07-4X9704"},1,{"$f":"FETCHCOMMENT(G123)","v":"BEADOR CONSTRUCTION COMPANY, INC."},7]
["HYDRO2GEOTECH, LLC",-4142,247100,"M",2,{"$f":"FETCHCOMMENT(E124)","v":"05-1H6504\n12-0K91U4"},1,{"$f":"FETCHCOMMENT(G124)","v":"GRANITE CONSTRUCTION COMPANY"},"5,12"]
["K&G CONCRETE PUMPING",-4142,2300,"M",1,{"$f":"FETCHCOMMENT(E125)","v":"05-1K6404"},1,{"$f":"FETCHCOMMENT(G125)","v":"GRANITE CONSTRUCTION COMPANY"},5]
["SNLM LANDSCAPE",-4142,250000,"M",1,{"$f":"FETCHCOMMENT(E126)","v":"12-0K91U4"},1,{"$f":"FETCHCOMMENT(G126)","v":"GRANITE CONSTRUCTION COMPANY"},12]
["SYNERGY TRAFFIC CONTROL",-4142,653325,"M",1,{"$f":"FETCHCOMMENT(E127)","v":"12-0R3134"},1,{"$f":"FETCHCOMMENT(G127)","v":"PETERSON-CHASE GENERAL ENGINEERING CONSTRUCTION, INC."},12]
["THE QUALITY FIRM, ACS, AC SERVICES",-4142,312805,"M",2,{"$f":"FETCHCOMMENT(E128)","v":"08-1J6104\n08-1J2704"},2,{"$f":"FETCHCOMMENT(G128)","v":"FBD VANGUARD CONSTRUCTION, INC.\nSULLY-MILLER CONTRACTING COMPANY"},8]
["THOMPSON CONTRACTING ",-4142,2516950,"M",2,{"$f":"FETCHCOMMENT(E129)","v":"01-0F7104\n02-0K6404"},2,{"$f":"FETCHCOMMENT(G129)","v":"GHILOTTI CONSTRUCTION COMPANY, INC.\nMCCUEN CONSTRUCTION, INC."},"1,2"]
["TIPCO ENGINEERING, INC.",-4142,2060770,"M",2,{"$f":"FETCHCOMMENT(E130)","v":"08-1K4004\n12-0K91U4"},2,{"$f":"FETCHCOMMENT(G130)","v":"BEADOR CONSTRUCTION COMPANY, INC.\nGRANITE CONSTRUCTION COMPANY"},"8,12"]
[null,null,null,null,null,{"$f":"FETCHCOMMENT(E131)","v":""},null,{"$f":"FETCHCOMMENT(G131)","v":""}]
[]
["Sub Cont Asian","Column1","Dollars","M/F","Contract","Contract #","Prime","Prime Name","Districts"]
["A1 TRUCKING SVS INC",-4142,767489.44,"M",3,{"$f":"FETCHCOMMENT(E134)","v":"04-0P7604\n04-2Q8004\n05-1H6504"},3,{"$f":"FETCHCOMMENT(G134)","v":"ST. FRANCIS ELECTRIC, LLC.\nGORDON N. BALL, INC.\nGRANITE CONSTRUCTION COMPANY"},"4,5"]
["CENTRAL TRUCKING, INC.",43,684990,"M",1,{"$f":"FETCHCOMMENT(E135)","v":"10-0Q2104"},1,{"$f":"FETCHCOMMENT(G135)","v":"BAY CITIES PAVING & GRADING, INC."},10]
["DESTINATION ANYWHERE, INC.",-4142,84000,"M",1,{"$f":"FETCHCOMMENT(E136)","v":"10-1L2804"},1,{"$f":"FETCHCOMMENT(G136)","v":"O.C. JONES & SONS, INC."},10]
["JABI TRUCKING",43,3482110,"M",2,{"$f":"FETCHCOMMENT(E137)","v":"01-0H6004\n01-0H6404"},2,{"$f":"FETCHCOMMENT(G137)","v":"ARGONAUT CONSTRUCTORS"},1]
["JASS BOYS TRUCK LINES",43,691080,"M",1,{"$f":"FETCHCOMMENT(E138)","v":"04-2K7404"},1,{"$f":"FETCHCOMMENT(G138)","v":"BAY CITIES PAVING & GRADING, INC."},4]
["S&S TRUCKING",43,225150,"M",1,{"$f":"FETCHCOMMENT(E139)","v":"01-0F7104"},1,{"$f":"FETCHCOMMENT(G139)","v":"GHILOTTI CONSTRUCTION COMPANY, INC."},1]
["SIERRA GEOTECH DBE INC",-4142,250208.64000000001,"M",3,{"$f":"FETCHCOMMENT(E140)","v":"03-0J01U4\n01-0F7104\n05-1H6504"},3,{"$f":"FETCHCOMMENT(G140)","v":"MERCER-FRASER COMPANY\nGHILOTTI CONSTRUCTION COMPANY, INC.\nGRANITE CONSTRUCTION COMPANY"},"1,3,5"]
["SEQUOIA CONSULTANTS",33,988657,"M",8,{"$f":"FETCHCOMMENT(E141)","v":"03-4H8704\n11-430384\n08-1J6104\n12-0R3134\n11-056404\n06-487404\n08-1K4004\n08-1K6904"},6,{"$f":"FETCHCOMMENT(G141)","v":"O.C. JONES & SONS, INC.\nHAZARD CONSTRUCTION ENGR, LLC\nFBD VANGUARD CONSTRUCTION, INC.\nPETERSON-CHASE GENERAL ENGINEERING CONSTRUCTION, INC.\nGRANITE CONSTRUCTION COMPANY\nBEADOR CONSTRUCTION COMPANY, INC."},"3,8,11,12"]
["TSI ENGINEERING, INC.",-4142,6124087,"M",1,{"$f":"FETCHCOMMENT(E142)","v":"08-1J3304\n"},1,{"$f":"FETCHCOMMENT(G142)","v":"TSI ENGINEERING, INC."},8]
[null,null,null,null,null,{"$f":"FETCHCOMMENT(E143)","v":""},null,{"$f":"FETCHCOMMENT(G143)","v":""}]
[null,null,null,null,null,{"$f":"FETCHCOMMENT(E144)","v":""},null,{"$f":"FETCHCOMMENT(G144)","v":""}]
[null,null,null,null,null,{"$f":"FETCHCOMMENT(E145)","v":""},null,{"$f":"FETCHCOMMENT(G145)","v":""}]
[null,null,null,null,null,{"$f":"FETCHCOMMENT(E146)","v":""},null,{"$f":"FETCHCOMMENT(G146)","v":""}]
[]
["Asian Pacific","Column1","Dollars","M/F","Contract","Contract #","Prime","Prime Name","Districts"]
["ACCU CONSTRUCTION",-4142,1057600,"M",2,{"$f":"FETCHCOMMENT(E149)","v":"07-348404\n07-356504"},1,{"$f":"FETCHCOMMENT(G149)","v":"ACCU CONSTRUCTION, INC."},7]
["ACE FENCE COMPANY",-4142,4472450.5,"F",12,{"$f":"FETCHCOMMENT(E150)","v":"11-430384\n06-0X250\n07-333604\n12-0R3134\n05-1Q03U4\n08-1J3004\n11-056404\n06-487404\n07-4X9704\n12-0K91U4\n12-0R3154\n08-1K6904"},7,{"$f":"FETCHCOMMENT(G150)","v":"HAZARD CONSTRUCTION ENGR, LLC\nGRANITE CONSTRUCTION COMPANY\nSULLY-MILLER CONTRACTING COMPANY\nPETERSON-CHASE GENERAL ENGINEERING CONSTRUCTION, INC.\nPAPICH CONSTRUCTION COMPANY, INC.\nBEADOR CONSTRUCTION COMPANY, INC.\nPOWELL CONSTRUCTORS, INC."},"5,6,7,8,11,12"]
["ACE SWEEPERS & WATER TRUCKS",43,158990,"M",3,{"$f":"FETCHCOMMENT(E151)","v":"04-0K6404\n04-3J2604\n10-1L2804"},1,{"$f":"FETCHCOMMENT(G151)","v":"O.C. JONES & SONS, INC."},"4,10"]
["BRIDGE RUBBER BEARING, LLC",-4142,66608,"M",1,{"$f":"FETCHCOMMENT(E152)","v":"06-487404"},1,{"$f":"FETCHCOMMENT(G152)","v":"GRANITE CONSTRUCTION COMPANY"},6]
["CALIFORNIA PROFESSIONAL",-4142,344000,"M",3,{"$f":"FETCHCOMMENT(E153)","v":"07-4X9704\n08-1J2704\n12-0S7004"},3,{"$f":"FETCHCOMMENT(G153)","v":"BEADOR CONSTRUCTION COMPANY, INC.\nSULLY-MILLER CONTRACTING COMPANY\nAUTOBAHN CONSTRUCTION, INC.\n"},"7,8,12"]
["GLOBAL ROAD SEALING INC",-4142,1063675,"M",7,{"$f":"FETCHCOMMENT(E154)","v":"12-0S1404\n01-0H6004\n07-333604\n07-377604\n08-1J7204\n12-0K91U4\n12-0R57U4"},6,{"$f":"FETCHCOMMENT(G154)","v":"CHUMO CONSTRUCTION, INC.\nARGONAUT CONSTRUCTORS\nSULLY-MILLER CONTRACTING COMPANY\nPTM GENERAL ENGINEERING SERVICES, INC.\nGRANITE CONSTRUCTION COMPANY\nSECURITY PAVING COMPANY, INC."},"1,7,8,12"]
["GOLDEN STATE TRUCKING",43,661700,"M",2,{"$f":"FETCHCOMMENT(E155)","v":"04-0K6404\n04-3J2604\n"},1,{"$f":"FETCHCOMMENT(G155)","v":"O.C. JONES & SONS, INC."},4]
["IMRAE",-4142,46458,"M",1,{"$f":"FETCHCOMMENT(E156)","v":"01-0J8904"},1,{"$f":"FETCHCOMMENT(G156)","v":"MERCER-FRASER COMPANY"},1]
["LEGACY REINFORCING STEEL LLC",-4142,980929.76,"M",2,{"$f":"FETCHCOMMENT(E157)","v":"11-056404\n08-1K4004"},2,{"$f":"FETCHCOMMENT(G157)","v":"HAZARD CONSTRUCTION ENGR, LLC\nBEADOR CONSTRUCTION COMPANY, INC."},"8,11"]
["NITTA EROSION CONTROL",-4142,18699.2,"F",1,{"$f":"FETCHCOMMENT(E158)","v":"10-0Q2104"},1,{"$f":"FETCHCOMMENT(G158)","v":"BAY CITIES PAVING & GRADING, INC."},10]
["PRIME SUPPLY 1",-4142,178057.75,"F",5,{"$f":"FETCHCOMMENT(E159)","v":"11-430384\n05-1J7804\n11-056404\n01-0H6404\n12-0R57U4"},4,{"$f":"FETCHCOMMENT(G159)","v":"HAZARD CONSTRUCTION ENGR, LLC\nCALPORTLAND CONSTRUCTION\nWYLATTI RESOURCE MANAGEMENT, INC.\nSECURITY PAVING COMPANY, INC."},"1,5,11,12"]
["S. KWOK ENGINEERS",-4142,19650,"M",1,{"$f":"FETCHCOMMENT(E160)","v":"04-2K7404"},1,{"$f":"FETCHCOMMENT(G160)","v":"BAY CITIES PAVING & GRADING, INC."},4]
["TRAFFIC LOOPS CRACKFILLING INC",-4142,3326375,"F",3,{"$f":"FETCHCOMMENT(E161)","v":"11-430384\n08-1J6104\n12-0R57U4"},3,{"$f":"FETCHCOMMENT(G161)","v":"HAZARD CONSTRUCTION ENGR, LLC\nFBD VANGUARD CONSTRUCTION, INC.\nSECURITY PAVING COMPANY, INC."},"8,11,12"]
["TRI COUNTIES TRUCKING",43,1228385,"F",3,{"$f":"FETCHCOMMENT(E162)","v":"03-4H8704\n04-0K6404\n03-1H1404"},2,{"$f":"FETCHCOMMENT(G162)","v":"O.C. JONES & SONS, INC.\nMARTIN BROTHERS CONSTRUCTION"},"3,4"]
["TRINITY FENCE COMPANY",-4142,700154,"M",1,{"$f":"FETCHCOMMENT(E163)","v":"08-1K4004"},1,{"$f":"FETCHCOMMENT(G163)","v":"BEADOR CONSTRUCTION COMPANY, INC."},8]
[null,null,null,null,null,{"$f":"FETCHCOMMENT(E164)","v":""},null,{"$f":"FETCHCOMMENT(G164)","v":""}]
[null,null,null,null,null,{"$f":"FETCHCOMMENT(E165)","v":""},null,{"$f":"FETCHCOMMENT(G165)","v":""}]
[]
["Other","Column1","Dollars","M/F","Contract","Contract #","Prime","Prime Name","Districts"]
[null,null,null,null,null,{"$f":"FETCHCOMMENT(E168)","v":""},null,{"$f":"FETCHCOMMENT(G168)","v":""}]
[null,null,null,null,null,{"$f":"FETCHCOMMENT(E169)","v":""},null,{"$f":"FETCHCOMMENT(G169)","v":""}]
[]
["Non Minority Women","Column1","Dollars","M/F","Contract","Contract #","Prime","Prime Name","Districts"]
["ACTION SWEEPING SERVICES INC",43,201290,"F",2,{"$f":"FETCHCOMMENT(E172)","v":"03-4H8704\n06-487404"},2,{"$f":"FETCHCOMMENT(G172)","v":"O.C. JONES & SONS, INC.\nGRANITE CONSTRUCTION COMPANY"},"3,6"]
["ALTA GROUP",-4142,295500,"F",2,{"$f":"FETCHCOMMENT(E173)","v":"03-4H8704\n04-2K7404"},2,{"$f":"FETCHCOMMENT(G173)","v":"O.C. JONES & SONS, INC.\nBAY CITIES PAVING & GRADING, INC."},"3,4"]
["AURORA INDSTRIAL HYGIENE",-4142,1000,"F",1,{"$f":"FETCHCOMMENT(E174)","v":"02-3H6904"},1,{"$f":"FETCHCOMMENT(G174)","v":"DIG IT CONSTRUCTION, INC."},2]
["AVILA TRAFFIC SAFETY ",33,3188598.6,"F",5,{"$f":"FETCHCOMMENT(E175)","v":"05-1J7804\n04-1Q2004\n05-1H6504\n05-1K4504\n05-1K5104"},4,{"$f":"FETCHCOMMENT(G175)","v":"CALPORTLAND CONSTRUCTION\nCOLUMBIA ELECTRIC, INC.\nGRANITE CONSTRUCTION COMPANY\nCENTRAL COAST FINANCIAL GROUP, INC. DBA CCFG CONSTRUCTION"},"4,5"]
["BANCROFT CONSTRUCTION SERVICES",null,1250248,"F",1,{"$f":"FETCHCOMMENT(E176)","v":"08-1K6904"},1,{"$f":"FETCHCOMMENT(G176)","v":"GRANITE CONSTRUCTION COMPANY"},8]
["BOUTHILLIER CONSTRUCTION, INC.",-4142,882747,"F",1,{"$f":"FETCHCOMMENT(E177)","v":"01-0H6404"},1,{"$f":"FETCHCOMMENT(G177)","v":"WYLATTI RESOURCE MANAGEMENT, INC."},1]
["CAIN TRUCKING, INC.",-4142,1776800,"F",1,{"$f":"FETCHCOMMENT(E178)","v":"06-487404"},1,{"$f":"FETCHCOMMENT(G178)","v":"GRANITE CONSTRUCTION COMPANY"},6]
["CAL SIGNAL CORP",-4142,308348.88,"F",3,{"$f":"FETCHCOMMENT(E179)","v":"04-2Q8004\n05-1H6504\n05-1K6404"},2,{"$f":"FETCHCOMMENT(G179)","v":"GORDON N. BALL, INC.\nGRANITE CONSTRUCTION COMPANY"},"4,5"]
["CALIFORNIA TRAFFIC SAFETY",-4142,684628.5,"F",1,{"$f":"FETCHCOMMENT(E180)","v":"04-0K6404"},1,{"$f":"FETCHCOMMENT(G180)","v":"O.C. JONES & SONS, INC."},4]
["CAROLINA CONSTRUCTION SUPPLIES",33,406308.28,"F",2,{"$f":"FETCHCOMMENT(E181)","v":"12-0K91U4\n12-0R57U4"},2,{"$f":"FETCHCOMMENT(G181)","v":"GRANITE CONSTRUCTION COMPANY\nSECURITY PAVING COMPANY, INC."},12]
["CAT TRACKING",-4142,50534,"F",1,{"$f":"FETCHCOMMENT(E182)","v":"07-4X9704"},1,{"$f":"FETCHCOMMENT(G182)","v":"BEADOR CONSTRUCTION COMPANY, INC."},7]
["CMC TRAFFIC CONTROL",-4142,1237402,"F",3,{"$f":"FETCHCOMMENT(E183)","v":"04-0K1004\n04-3J2604\n04-2Q8004"},3,{"$f":"FETCHCOMMENT(G183)","v":"MIKE BROWN ELECTRIC CO.\nO.C. JONES & SONS, INC.\nGORDON N. BALL, INC."},4]
["COLUMBIA ELECTRIC, INC.",-4142,6089979,"F",3,{"$f":"FETCHCOMMENT(E184)","v":"04-1Q2004\n04-0K6404\n04-0P9204"},3,{"$f":"FETCHCOMMENT(G184)","v":"COLUMBIA ELECTRIC, INC.\nO.C. JONES & SONS, INC.\nMYERS & SONS CONSTRUCTION, LLC."},"2,4"]
["CONSTRUCTION SURVEY, INC.",-4142,16000,"F",1,{"$f":"FETCHCOMMENT(E185)","v":"04-2Q6104"},1,{"$f":"FETCHCOMMENT(G185)","v":"GRANITE ROCK COMPANY"},4]
["CONTERA CONSTRUCTION CORP",33,2100400,"F",2,{"$f":"FETCHCOMMENT(E186)","v":"11-056404\n08-1K4004"},2,{"$f":"FETCHCOMMENT(G186)","v":"HAZARD CONSTRUCTION ENGR, LLC\nBEADOR CONSTRUCTION COMPANY, INC."},"8,11"]
["COOPER ENGINEERING",-4142,1874947.2799999998,"F",2,{"$f":"FETCHCOMMENT(E187)","v":"12-0S1404\n12-0R3134"},2,{"$f":"FETCHCOMMENT(G187)","v":"CHUMO CONSTRUCTION, INC.\nPETERSON-CHASE GENERAL ENGINEERING CONSTRUCTION, INC."},12]
["CRW ASSIST",-4142,121270,"F",1,{"$f":"FETCHCOMMENT(E188)","v":"02-3H6904"},1,{"$f":"FETCHCOMMENT(G188)","v":"DIG IT CONSTRUCTION, INC."},2]
["DEES BURKE ENGINEERING",-4142,4815561.3000000007,"F",12,{"$f":"FETCHCOMMENT(E189)","v":"05-1J7804\n04-2Q6104\n04-4K3004\n01-0J8904\n04-0P9204\n02-4H0704\n04-2Q8004\n05-1H6504\n05-1K4504\n12-0K91U4\n12-0R3154\n08-1K6904"},8,{"$f":"FETCHCOMMENT(G189)","v":"CALPORTLAND CONSTRUCTION\nGRANITE ROCK COMPANY\nGORDON N. BALL, INC.\nMERCER-FRASER COMPANY\nMYERS & SONS CONSTRUCTION LLC\nHAT CREEK CONSTRUCTION & MATERIALS, INC.\nGRANITE CONSTRUCTION COMPANY\nPOWELL CONSTRUCTORS, INC."},"1,2,4,5,8,12"]
["DIVERSIFIED LANDSCAPE CO",-4142,6917353.5599999996,"F",8,{"$f":"FETCHCOMMENT(E190)","v":"11-430384\n07-333604\n08-1J6104\n08-1J3004\n08-1J2704\n08-1J7204\n12-0K91U4\n08-1K6904"},4,{"$f":"FETCHCOMMENT(G190)","v":"HAZARD CONSTRUCTION ENGR, LLC\nSULLY-MILLER CONTRACTING COMPANY\nFBD VANGUARD CONSTRUCTION, INC.\nGRANITE CONSTRUCTION COMPANY"},"7,8,11,12"]
["DOUBLE E TRANSPORTATION INC",43,182347.2,"F",1,{"$f":"FETCHCOMMENT(E191)","v":"05-1Q03U4"},1,{"$f":"FETCHCOMMENT(G191)","v":"PAPICH CONSTRUCTION COMPANY, INC."},5]
["E. AMEZCUA TRUCKING, INC.",43,139780,"F",1,{"$f":"FETCHCOMMENT(E192)","v":"05-1K6404"},1,{"$f":"FETCHCOMMENT(G192)","v":"GRANITE CONSTRUCTION COMPANY"},5]
["ETA HUMBOLDT",-4142,248676.25,"F",1,{"$f":"FETCHCOMMENT(E193)","v":"01-0H6404"},1,{"$f":"FETCHCOMMENT(G193)","v":"WYLATTI RESOURCE MANAGEMENT, INC."},1]
["FOREFRONT DEEP FOUNDATIONS INC",-4142,266470.52,"F",1,{"$f":"FETCHCOMMENT(E194)","v":"05-1J7804\n"},1,{"$f":"FETCHCOMMENT(G194)","v":"CALPORTLAND CONSTRUCTION"},5]
["GALLAWAY ENTERPRISES",-4142,12635,"F",2,{"$f":"FETCHCOMMENT(E195)","v":"03-4H8704\n02-4H0604"},2,{"$f":"FETCHCOMMENT(G195)","v":"O.C. JONES & SONS, INC.\nHAT CREEK CONSTRUCTION & MATERIALS, INC."},"2,3"]
["GDS INDUSTRIES INC",33,542262.87,"F",1,{"$f":"FETCHCOMMENT(E196)","v":"04-0P7604\n"},1,{"$f":"FETCHCOMMENT(G196)","v":"ST. FRANCIS ELECTRIC, LLC.\n"},4]
["GREGORY CONSTRUCTION EQUIPMENT",43,209920,"F",3,{"$f":"FETCHCOMMENT(E197)","v":"03-0J01U4\n02-3H6904\n10-0Q2104"},3,{"$f":"FETCHCOMMENT(G197)","v":"MERCER-FRASER COMPANY\nDIG IT CONSTRUCTION, INC.\nBAY CITIES PAVING & GRADING, INC."},"2,3,10"]
["J & M LAND RESTORATION INC",-4142,2719622.2,"F",4,{"$f":"FETCHCOMMENT(E198)","v":"05-1J7804\n02-4H0604\n05-1Q03U4\n06-487404"},4,{"$f":"FETCHCOMMENT(G198)","v":"CALPORTLAND CONSTRUCTION\nHAT CREEK CONSTRUCTION & MATERIALS, INC.\nPAPICH CONSTRUCTION COMPANY, INC.\nGRANITE CONSTRUCTION COMPANY"},"2,5,6"]
["JARRETT FOUNDATIONS",33,299297.5,"F",1,{"$f":"FETCHCOMMENT(E199)","v":"01-0J8904"},1,{"$f":"FETCHCOMMENT(G199)","v":"MERCER-FRASER COMPANY"},1]
["K&K CONSTRUCTION SUPPLY, INC.",33,312912.56,"F",2,{"$f":"FETCHCOMMENT(E200)","v":"08-1J6104\n06-487404"},2,{"$f":"FETCHCOMMENT(G200)","v":"FBD VANGUARD CONSTRUCTION, INC.\nGRANITE CONSTRUCTION COMPANY"},"6,8"]
["LINDY'S COLD PLANNING",-4142,8125604.7300000004,"F",7,{"$f":"FETCHCOMMENT(E201)","v":"07-333604\n08-1J6104\n08-1J2704\n08-1J7204\n08-1K4004\n12-0K91U4\n08-1K6904"},4,{"$f":"FETCHCOMMENT(G201)","v":"SULLY-MILLER CONTRACTING COMPANY\nFBD VANGUARD CONSTRUCTION, INC.\nBEADOR CONSTRUCTION COMPANY, INC.\nGRANITE CONSTRUCTION COMPANY"},"7,8,12"]
["LMS TRANSPORT",33,6896697.1799999997,"F",9,{"$f":"FETCHCOMMENT(E202)","v":"05-1J7804\n12-0S1404\n07-333604\n08-1J6104\n05-1K4504\n08-1J2704\n08-1J7204\n08-1K4004\n08-1K6904"},6,{"$f":"FETCHCOMMENT(G202)","v":"CALPORTLAND CONSTRUCTION\nCHUMO CONSTRUCTION, INC.\nSULLY-MILLER CONTRACTING COMPANY\nFBD VANGUARD CONSTRUCTION, INC.\nBEADOR CONSTRUCTION COMPANY, INC.\nGRANITE CONSTRUCTION COMPANY"},"5,7,8,12"]
["LOGISTICAL ENTERPRISES",-4142,128019.18,"F",1,{"$f":"FETCHCOMMENT(E203)","v":"02-1J75U4"},1,{"$f":"FETCHCOMMENT(G203)","v":"HAT CREEK CONSTRUCTION & MATERIALS, INC."},2]
["LOWERS WELDING & FABRICATION",-4142,52477.88,"F",1,{"$f":"FETCHCOMMENT(E204)","v":"01-0H6404"},1,{"$f":"FETCHCOMMENT(G204)","v":"WYLATTI RESOURCE MANAGEMENT, INC."},1]
["MCW TRAFFIC CONTROL",-4142,516769,"F",3,{"$f":"FETCHCOMMENT(E205)","v":"03-4H8704\n01-0F7104\n02-0K6404"},3,{"$f":"FETCHCOMMENT(G205)","v":"O.C. JONES & SONS, INC.\nGHILOTTI CONSTRUCTION COMPANY, INC.\nMCCUEN CONSTRUCTION, INC."},"1,2,3"]
["MOUNTAINVIEW BIOLOGICAL",-4142,114000,"F",1,{"$f":"FETCHCOMMENT(E206)","v":"08-1K4004"},1,{"$f":"FETCHCOMMENT(G206)","v":"BEADOR CONSTRUCTION COMPANY, INC."},8]
["NICHOLLS TRUCKING INC",43,140000,"F",1,{"$f":"FETCHCOMMENT(E207)","v":"01-0J8904"},1,{"$f":"FETCHCOMMENT(G207)","v":"MERCER-FRASER COMPANY"},1]
["NORTH STATE GENERAL ENGINEERING",-4142,584727,"F",2,{"$f":"FETCHCOMMENT(E208)","v":"03-1H1404\n03-3H8304"},2,{"$f":"FETCHCOMMENT(G208)","v":"MARTIN BROTHERS CONSTRUCTION\nPACIFIC INFRASTRUCTURE CONSTRUCTION, LLC"},3]
["PAVEMENT MANAGEMENT",-4142,35000,"F",1,{"$f":"FETCHCOMMENT(E209)","v":"02-3H6904"},1,{"$f":"FETCHCOMMENT(G209)","v":"DIG IT CONSTRUCTION, INC."},2]
["PAYCO SPECIALTIES",-4142,3447356.59,"F",2,{"$f":"FETCHCOMMENT(E210)","v":"11-430384\n11-056404"},1,{"$f":"FETCHCOMMENT(G210)","v":"HAZARD CONSTRUCTION ENGR, LLC"},11]
["PC&N CONSTRUCTION JINC",33,1095741.75,"F",3,{"$f":"FETCHCOMMENT(E211)","v":"04-0K6404\n04-0P9204\n04-0P7604"},3,{"$f":"FETCHCOMMENT(G211)","v":"O.C. JONES & SONS, INC.\nMYERS & SONS CONSTRUCTION, LLC.\nST. FRANCIS ELECTRIC, LLC."},4]
["PLAYA SAFETY, INC.",-4142,58000.56,"F",1,{"$f":"FETCHCOMMENT(E212)","v":"08-1J6104"},1,{"$f":"FETCHCOMMENT(G212)","v":"FBD VANGUARD CONSTRUCTION, INC."},2]
["RDL EQUIPMENT",33,380000,"F",1,{"$f":"FETCHCOMMENT(E213)","v":"12-0K91U4"},1,{"$f":"FETCHCOMMENT(G213)","v":"GRANITE CONSTRUCTION COMPANY"},12]
["ROBERTS OIL CORPORATION",33,979238.40000000002,"F",2,{"$f":"FETCHCOMMENT(E214)","v":"11-430384\n12-0R57U4"},2,{"$f":"FETCHCOMMENT(G214)","v":"HAZARD CONSTRUCTION ENGR, LLC\nSECURITY PAVING COMPANY, INC."},"11,12"]
["ROLL N ROCK CONSTRUCTION",-4142,4688182.16,"F",5,{"$f":"FETCHCOMMENT(E215)","v":"03-0J01U4\n01-0H6004\n02-3H6904\n01-0J8904\n03-1H1404\n03-3H8304"},5,{"$f":"FETCHCOMMENT(G215)","v":"MERCER-FRASER COMPANY\nARGONAUT CONSTRUCTORS\nDIG IT CONSTRUCTION, INC.\nMARTIN BROTHERS CONSTRUCTION\nPACIFIC INFRASTRUCTURE CONSTRUCTION, LLC"},"1,2,3"]
["S.A.M. RHODES ",-4142,467150,"F",8,{"$f":"FETCHCOMMENT(E216)","v":"03-0J01U4\n02-4H0604\n01-0J8904\n02-4H03U4\n02-1J75U4\n02-4H0104\n02-4H0704\n05-1H6504"},3,{"$f":"FETCHCOMMENT(G216)","v":"MERCER-FRASER COMPANY\nHAT CREEK CONSTRUCTION & MATERIALS, INC.\nGRANITE CONSTRUCTION COMPANY"},"1,2,3,5"]
["SHASTA PRECAST, INC.",-4142,217809.75,"F",2,{"$f":"FETCHCOMMENT(E217)","v":"02-1J75U4\n02-4H0704"},1,{"$f":"FETCHCOMMENT(G217)","v":"HAT CREEK CONSTRUCTION & MATERIALS, INC."},2]
["SPRING RIVERS ECOLOGICAL",-4142,74400,"F",4,{"$f":"FETCHCOMMENT(E218)","v":"02-3H6904\n02-4H03U4\n02-1J75U4\n02-4H0704"},2,{"$f":"FETCHCOMMENT(G218)","v":"DIG IT CONSTRUCTION, INC.\nHAT CREEK CONSTRUCTION & MATERIALS, INC."},2]
["SUPER SEAL & STRIPE ",-4142,1516983.25,"F",5,{"$f":"FETCHCOMMENT(E219)","v":"05-1J7804\n05-1H6504\n05-1K4504\n05-1K5104\n05-1K6404"},3,{"$f":"FETCHCOMMENT(G219)","v":"CALPORTLAND CONSTRUCTION\nGRANITE CONSTRUCTION COMPANY\nCENTRAL COAST FINANCIAL GROUP, INC. DBA CCFG CONSTRUCTION"},5]
["T & S DVBE",33,11819683.109999999,"F",10,{"$f":"FETCHCOMMENT(E220)","v":"03-4H8704\n02-3H6904\n02-4H0604\n02-4H03U4\n03-2J5904\n01-0H6404\n02-1J75U4\n02-4H0104\n02-4H0704\n10-1L2804"},4,{"$f":"FETCHCOMMENT(G220)","v":"O.C. JONES & SONS, INC.\nDIG IT CONSTRUCTION, INC.\nHAT CREEK CONSTRUCTION & MATERIALS, INC.\nSTUDEBAKER ELECTRIC, INC."},"2,3"]
["TALL TREE ENGINEERING",-4142,70840,"F",1,{"$f":"FETCHCOMMENT(E221)","v":"01-0H6404"},1,{"$f":"FETCHCOMMENT(G221)","v":"WYLATTI RESOURCE MANAGEMENT, INC."},1]
["TEK SERVICES",33,700478.01,"F",1,{"$f":"FETCHCOMMENT(E222)","v":"07-333604"},1,{"$f":"FETCHCOMMENT(G222)","v":"SULLY-MILLER CONTRACTING COMPANY"},7]
["TRI VALLEY WATER TRUCKS, INC.",33,1514796,"F",1,{"$f":"FETCHCOMMENT(E223)","v":"04-2Q6104"},1,{"$f":"FETCHCOMMENT(G223)","v":"GRANITE ROCK COMPANY"},4]
["TUNGSTEN ENGINEERING",43,4833634.5,"F",4,{"$f":"FETCHCOMMENT(E224)","v":"02-4H03U4\n02-1J75U4\n02-4H0704\n03-1H1404"},2,{"$f":"FETCHCOMMENT(G224)","v":"HAT CREEK CONSTRUCTION & MATERIALS, INC.\nMARTIN BROTHERS CONSTRUCTION\n"},"2,3"]
["TYRRELL RESOURCES",-4142,2066867.85,"F",8,{"$f":"FETCHCOMMENT(E225)","v":"02-4H0604\n01-0F7104\n02-0K6404\n02-4H03U4\n02-1J75U4\n03-3H8304\n06-487404\n10-1L2804"},6,{"$f":"FETCHCOMMENT(G225)","v":"HAT CREEK CONSTRUCTION & MATERIALS, INC.\nGHILOTTI CONSTRUCTION COMPANY, INC.\nMCCUEN CONSTRUCTION, INC.\nGRANITE CONSTRUCTION COMPANY\nO.C. JONES & SONS, INC.\nPACIFIC INFRASTRUCTURE CONSTRUCTION, LLC"},"1,2,3,6,10"]
["WEST COAST WATER & TRUCKING",43,2633680,"F",3,{"$f":"FETCHCOMMENT(E226)","v":"03-4H8704\n03-0J01U4\n03-3H8304"},3,{"$f":"FETCHCOMMENT(G226)","v":"O.C. JONES & SONS, INC.\nMERCER-FRASER COMPANY\nPACIFIC INFRASTRUCTURE CONSTRUCTION, LLC"},3]
[]
[]
[null,{"$f":"COUNTIF(B30:B228, \"33\")","v":25}]
[null,{"$f":"COUNTIF(B30:B228, \"43\")","v":28}]
[null,{"$f":"COUNTIF(B30:B228, \"-4142\")","v":114}]
["Prime Name",null,"Number of Contracts","Contract #","Prime Name","Number of Contracts","Contract #","Prime Name","Number of Contracts","Contract #"]
["ACCU CONSTRUCTION, INC.",null,2,{"$f":"FETCHCOMMENT(C233)","v":"07-348404\n07-356504\n"},"GORDON N. BALL, INC.",2,{"$f":"FETCHCOMMENT(F233)","v":"04-4K3004\n04-2Q8004"},"PETERSON-CHASE GENERAL ENGINEERING CONSTRUCTION, INC.",1,{"$f":"FETCHCOMMENT(I233)","v":"12-0R3134"}]
["ARGONAUT CONSTRUCTORS",null,1,{"$f":"FETCHCOMMENT(C234)","v":"01-0H6004"},"GRANITE CONSTRUCTION COMPANY",6,{"$f":"FETCHCOMMENT(F234)","v":"06-0X2504\n05-1H6504\n05-1K6404\n06-487404\n08-1K6904\n12-0K91U4"},"POLO ENGINEERING, INC.",1,{"$f":"FETCHCOMMENT(I234)","v":"07-4P8504"}]
["AUTOBAHN CONSTRUCTION, INC.",null,1,{"$f":"FETCHCOMMENT(C235)","v":"12-0S7004"},"GRANITE ROCK COMPANY",1,{"$f":"FETCHCOMMENT(F235)","v":"04-2Q6104"},"POWELL CONSTRUCTORS, INC.",1,{"$f":"FETCHCOMMENT(I235)","v":"12-0R3154"}]
["BAY CITIES PAVING & GRADING, INC.",null,2,{"$f":"FETCHCOMMENT(C236)","v":"10-0Q2104\n04-2K7404"},"HAT CREEK CONSTRUCTION & MATERIALS, INC.",5,{"$f":"FETCHCOMMENT(F236)","v":"02-4H0604\n02-4H03U4\n02-1J75U4\n02-4H0104\n02-4H0704"},"PTM GENERAL ENGINEERING SERVICES, INC.",1,{"$f":"FETCHCOMMENT(I236)","v":"07-377604"}]
["BEADOR CONSTRUCTION COMPANY, INC.",null,2,{"$f":"FETCHCOMMENT(C237)","v":"07-4X9704\n08-1K4004"},"HAZARD CONSTRUCTION ENGR, LLC",2,{"$f":"FETCHCOMMENT(F237)","v":"11-430384\n11-056404"},"QUIMU CONTRACTING, INC.",1,{"$f":"FETCHCOMMENT(I237)","v":"03-3J9104"}]
["CALPORTLAND CONSTRUCTION",null,2,{"$f":"FETCHCOMMENT(C238)","v":"05-1J7804\n05-1K4504"},"MARTIN BROTHERS CONSTRUCTION",1,{"$f":"FETCHCOMMENT(F238)","v":"03-1H1404"},"SECURITY PAVING COMPANY, INC.",1,{"$f":"FETCHCOMMENT(I238)","v":"12-0R57U4"}]
["CENTRAL COAST FINANCIAL GROUP, INC. DBA CCFG CONSTRUCTION",null,1,{"$f":"FETCHCOMMENT(C239)","v":"05-1K5104"},"MCCUEN CONSTRUCTION INC",1,{"$f":"FETCHCOMMENT(F239)","v":"02-0K6404"},"ST. FRANCIS ELECTRIC, LLC.",1,{"$f":"FETCHCOMMENT(I239)","v":"04-0P7604"}]
["CHUMO CONSTRUCTION, INC.",null,1,{"$f":"FETCHCOMMENT(C240)","v":"12-0S1404"},"MERCER-FRASER COMPANY",2,{"$f":"FETCHCOMMENT(F240)","v":"03-0J01U4\n01-0J8904"},"STUDEBAKER ELECTRIC INC",1,{"$f":"FETCHCOMMENT(I240)","v":"03-2J5904\n"}]
["COLUMBIA ELECTRIC, INC.",null,1,{"$f":"FETCHCOMMENT(C241)","v":"04-1Q2004"},"MIKE BROWN ELECTRIC CO.",1,{"$f":"FETCHCOMMENT(F241)","v":"04-0K1004"},"SULLY-MILLER CONTRACTING COMPANY",4,{"$f":"FETCHCOMMENT(I241)","v":"07-333604\n08-1J3004\n08-1J2704\n08-1J7204"}]
["DIG IT CONSTRUCTION, INC.",null,1,{"$f":"FETCHCOMMENT(C242)","v":"02-3H6904"},"MYERS & SONS CONSTRUCTION INC",1,{"$f":"FETCHCOMMENT(F242)","v":"04-0P9204"},"TSI ENGINEERING INC",1,{"$f":"FETCHCOMMENT(I242)","v":"08-1J3304"}]
["FBD VANGUARD CONSTRUCTION, INC.",null,1,{"$f":"FETCHCOMMENT(C243)","v":"08-1J6104"},"O.C. JONES & SONS, INC.",4,{"$f":"FETCHCOMMENT(F243)","v":"03-4H8704\n04-0K6404\n04-3J2604\n10-1L2804"},"WYLATTI RESOURCE MANAGEMENT, INC.",1,{"$f":"FETCHCOMMENT(I243)","v":"01-0H6404"}]
["G R SUNDBERG, INC.",null,2,{"$f":"FETCHCOMMENT(C244)","v":"01-0K4104\n01-0K9404"},"PACIFIC INFRASTRUCTURE CONSTRUCTION, LLC",1,{"$f":"FETCHCOMMENT(F244)","v":"03-3H8304"},"YAKAR",1,{"$f":"FETCHCOMMENT(I244)","v":"07-358404\n"}]
["GHILOTTI CONSTRUCTION COMPANY INC",null,1,{"$f":"FETCHCOMMENT(C245)","v":"01-0F7104"},"PAPICH CONSTRUCTION COMPANY INC",1,{"$f":"FETCHCOMMENT(F245)","v":"05-1Q03U4"}]
[]
["To see names of prime contractors/contract numbers, place your cursor on comment tab (red triangle)."]
["Caltrans DBE Reports: http://www.dot.ca.gov/hq/bep/reports.htm"]